bitfinex/quotes_ETHUSD_20251009
["timestamp","ask_amount","ask_price","bid_price","bid_amount"]
[1759972862918,12.319,4494.6,4493.1,0.01]
[1759972862919,2.22503519,4494.4,4493.1,0.453]
[1759972863091,0.027813,4494.3,4493.1,0.453]
[1759972863283,2.2251777,4494.1,4493.1,0.90578612]
[1759972863486,6.33481486,4494.0,4493.3,2.22552594]
[1759972863689,6.307,4494.0,4493.4,2.22546714]
[1759972863985,6.307,4494.0,4493.1,0.90578612]
[1759972864185,6.307,4494.0,4493.1,3.1314194]
[1759972864520,6.307,4494.0,4493.5,2.22542102]
[1759972864684,0.02781548,4493.9,4493.5,2.2254287]
[1759972864884,2.314,4493.8,4493.6,2.22537983]
[1759972865320,2.314,4493.8,4493.4,2.22544026]
[1759972865488,2.314,4493.8,4493.5,2.22543239]
[1759972865989,2.314,4493.8,4493.6,2.22538394]
[1759972866193,0.02781672,4493.7,4493.1,0.46278612]
[1759972866400,2.314,4493.8,4493.1,0.46278612]
[1759972866693,2.314,4493.8,4493.2,2.22558532]
[1759972867114,0.02781672,4493.7,4493.1,0.011]
[1759972867494,1.0935,4493.6,4493.1,0.011]
[1759972867823,2.22558532,4493.2,4493.1,0.011]
[1759972868009,9.19500513,4493.2,4493.1,0.011]
[1759972868212,9.62708532,4493.2,4493.1,0.011]
[1759972869336,21.20308532,4493.2,4493.1,0.011]
[1759972870526,23.12308532,4493.2,4493.1,0.011]
[1759972874244,30.26308532,4493.2,4493.1,0.011]
[1759972874638,38.59187249,4493.2,4493.1,1e-08]
[1759972876146,0.6336,4492.8,4490.3,2.26851494]
[1759972876348,4.14563486,4493.1,4490.3,0.001]
[1759972876349,0.6336,4491.9,4490.3,0.001]
[1759972876646,0.6336,4491.7,4490.3,0.001]
[1759972876846,0.6336,4491.4,4490.3,0.001]
[1759972877027,2.22659997,4491.2,4490.3,2.2280106]
[1759972877230,0.02783282,4491.1,4490.4,2.2269703]
[1759972877552,6.313,4491.0,4490.4,2.2269703]
[1759972877746,2.34283406,4490.9,4490.4,2.2269703]
[1759972878822,2.34283406,4490.9,4490.4,2.22696064]
[1759972879222,2.34283406,4490.9,4490.5,2.22692219]
[1759972879540,2.34283406,4490.9,4490.6,2.22682741]
[1759972880114,0.02783406,4490.9,4490.6,2.22682741]
[1759972880319,4.282,4490.8,4490.7,2.55202432]
[1759972880513,0.02783406,4490.9,4490.7,2.22682432]
[1759972880747,9.264,4491.1,4490.8,2.22676877]
[1759972880955,8.65683344,4491.0,4490.8,2.22676877]
[1759972881131,8.629,4491.0,4490.8,2.22676877]
[1759972881722,3.3197913,4491.8,4490.3,0.001]
[1759972881723,0.6336,4491.8,4491.0,2.22663433]
[1759972881924,0.6336,4492.0,4491.1,2.22660585]
[1759972881925,9.264,4491.4,4491.1,2.22660585]
[1759972882127,6.313,4491.3,4491.1,2.22660585]
[1759972882720,0.6336,4492.1,4491.1,2.22662012]
[1759972882937,9.264,4491.4,4491.1,2.22662012]
[1759972883162,6.34083158,4491.3,4490.8,0.3252]
[1759972883354,0.0278322,4491.2,4490.8,0.3252]
[1759972883654,2.316,4491.1,4490.9,2.22672515]
[1759972883855,6.313,4491.0,4490.9,2.22672515]
[1759972885060,9.265,4491.5,4491.3,2.22652131]
[1759972885265,8.628,4491.4,4491.3,2.22652131]
[1759972885466,0.01,4492.9,4491.1,0.01334783]
[1759972885628,9.265,4491.9,4491.5,2.22642769]
[1759972885833,6.11582848,4491.8,4491.7,2.22631525]
[1759972886063,6.088,4491.8,4491.7,2.22631525]
[1759972886565,0.1112,4492.0,4491.9,2.22622943]
[1759972886742,2.871,4492.0,4491.9,2.22621913]
[1759972887145,2.871,4492.0,4491.9,2.22622943]
[1759972888275,2.871,4492.0,4491.8,2.22627899]
[1759972888472,2.871,4492.0,4491.7,0.3252]
[1759972888659,2.871,4492.0,4491.7,2.55151281]
[1759972888971,2.871,4492.0,4491.7,2.22631281]
[1759972889539,2.871,4492.0,4491.8,2.22625874]
[1759972889751,2.871,4492.0,4491.9,2.22622943]
[1759972890247,2.871,4492.0,4491.8,2.22627126]
[1759972890971,2.871,4492.0,4491.9,2.22622943]
[1759972891580,2.871,4492.0,4491.6,2.22633225]
[1759972891783,2.871,4492.0,4491.7,2.22630796]
[1759972892480,2.871,4492.0,4491.5,2.33762707]
[1759972892481,2.871,4492.0,4491.8,0.3252]
[1759972892642,9.265,4492.2,4492.0,2.22613465]
[1759972892840,8.627,4492.1,4492.0,2.22613465]
[1759972894467,0.1112,4492.3,4491.8,0.33853916]
[1759972894665,2.541,4492.2,4492.1,2.22613031]
[1759972894968,8.627,4492.2,4492.1,2.74823031]
[1759972897245,8.627,4492.2,4491.0,2.22664585]
[1759972897442,2.22627537,4491.9,4490.8,2.42367222]
[1759972897676,6.33782848,4491.8,4491.1,2.22657998]
[1759972897871,6.31,4491.8,4491.1,2.22657998]
[1759972898238,8.53629281,4491.8,4491.1,2.22657998]
[1759972898876,0.4427,4491.7,4490.3,0.001]
[1759972899076,2.22651657,4491.4,4490.5,2.22688005]
[1759972899299,8.28983158,4491.3,4490.4,2.22696307]
[1759972899498,8.28983158,4491.3,4490.3,0.001]
[1759972899499,8.262,4491.3,4490.3,0.001]
[1759972899801,8.262,4491.3,4490.4,0.3252]
[1759972900096,8.627,4491.2,4490.5,2.22690135]
[1759972900300,8.627,4491.2,4490.6,0.3252]
[1759972901694,8.627,4491.2,4491.1,2.22662599]
[1759972902000,8.627,4491.2,4491.1,2.55182599]
[1759972903011,2.22601953,4492.4,4491.6,2.22633882]
[1759972903189,9.265,4491.9,4491.6,2.22633882]
[1759972903405,2.67,4491.8,4491.6,2.22633882]
[1759972903712,2.672,4491.8,4491.6,2.22633882]
[1759972903894,2.672,4491.8,4491.7,2.22632856]
[1759972904075,2.672,4491.8,4491.7,2.55152856]
[1759972907171,2.672,4491.8,4491.7,2.66272856]
[1759972913517,6.311,4491.8,4491.7,2.66272856]
[1759972918407,6.311,4491.8,4491.7,2.33752856]
[1759972919718,6.311,4491.8,4491.7,2.66272856]
[1759972921006,0.002,4491.8,4491.7,2.66272856]
[1759972921335,6.309,4491.8,4491.7,2.66272856]
[1759972922038,6.309,4491.8,4491.7,2.33752856]
[1759972922207,6.309,4491.8,4491.7,2.66272856]
[1759972922832,0.002,4491.8,4491.7,2.66272856]
[1759972925754,0.002,4491.8,4491.7,2.67607084]
[1759972926055,0.002,4491.8,4491.7,2.66272856]
[1759972930657,0.002,4491.8,4491.7,2.33752856]
[1759972930837,0.002,4491.8,4491.7,2.66272856]
[1759972931568,0.002,4491.8,4491.1,0.001]
[1759972931728,2.316,4491.7,4491.2,2.22653459]
[1759972932063,2.316,4491.7,4491.1,0.001]
[1759972932064,6.05402972,4491.6,4491.1,0.001]
[1759972932228,2.22643207,4491.5,4491.1,0.001]
[1759972932424,14.8588,4491.6,4491.1,0.001]
[1759972933173,17.08518961,4491.6,4491.1,0.001]
[1759972933373,0.02783034,4491.5,4491.1,0.001]
[1759972933579,1.03897367,4491.4,4491.1,0.001]
[1759972933762,0.02783158,4491.3,4491.1,0.001]
[1759972934479,3.29157641,4491.2,4491.1,0.001]
[1759972934984,6.306,4491.2,4491.1,0.001]
[1759972935151,1.03897367,4491.4,4491.1,0.001]
[1759972935475,13.39783158,4491.3,4491.1,0.001]
[1759972935677,13.37,4491.3,4491.1,0.001]
[1759972935853,8.6498322,4491.2,4491.1,0.001]
[1759972936176,8.622,4491.2,4491.1,0.001]
[1759972936906,8.623,4491.2,4491.1,0.001]
[1759972938455,9.265,4491.6,4491.1,0.3262]
[1759972938647,0.002,4491.8,4491.2,0.01334754]
[1759972938851,0.002,4491.8,4491.7,2.22632856]
[1759972939058,8.625,4491.8,4491.7,2.22632856]
[1759972939265,8.625,4491.8,4491.7,2.55152856]
[1759972941199,0.002,4491.8,4491.7,2.55152856]
[1759972941368,6.309,4491.8,4491.7,2.55152856]
[1759972941568,6.309,4491.8,4491.7,2.66272856]
[1759972942912,6.309,4491.8,4491.7,0.1112]
[1759972943417,7.1715,4491.8,4491.1,0.001]
[1759972943568,2.25415766,4491.7,4491.1,0.1122]
[1759972943891,0.0278291,4491.7,4491.1,0.1122]
[1759972944092,2.25417329,4491.7,4491.1,0.1122]
[1759972944297,0.40827367,4491.6,4491.1,0.1122]
[1759972944999,0.40827367,4491.6,4491.1,2.33881921]
[1759972945999,0.84037367,4491.6,4491.1,0.1122]
[1759972946181,0.02783034,4491.5,4491.1,0.1122]
[1759972946378,6.307,4491.4,4491.1,0.1122]
[1759972947220,6.97852737,4491.4,4491.1,0.1122]
[1759972948177,0.02783158,4491.3,4491.1,0.1122]
[1759972948982,0.02783158,4491.3,4491.1,0.001]
[1759972949683,0.4321,4491.2,4491.1,0.001]
[1759972949878,2.65867641,4491.2,4491.1,0.001]
[1759972950075,3.25792271,4491.2,4491.1,0.001]
[1759972952281,3.89152271,4491.2,4491.1,0.001]
[1759972957801,0.5992463,4491.2,4491.1,0.001]
[1759972958079,3.116,4491.2,4491.1,0.001]
[1759972960889,9.40503034,4491.5,4491.3,2.22652124]
[1759972961093,8.624,4491.4,4491.3,2.22652124]
[1759972961591,8.624,4491.4,4491.1,2.22762103]
[1759972961785,9.3772,4491.5,4491.1,2.22762103]
[1759972961786,0.1112,4491.5,4491.1,2.22762103]
[1759972961989,6.308,4491.3,4491.2,2.56512442]
[1759972962195,6.308,4491.3,4491.2,2.55177641]
[1759972962390,0.1132,4491.8,4491.7,2.22632856]
[1759972962581,0.002,4491.8,4491.7,2.22632856]
[1759972962780,0.121,4491.8,4491.7,2.66272856]
[1759972963892,0.002,4491.8,4491.7,2.66272856]
[1759972966296,0.002,4491.8,4491.7,3.47607084]
[1759972966491,0.002,4491.8,4491.7,4.38355351]
[1759972966679,0.002,4491.8,4491.7,6.30355351]
[1759972966889,0.002,4491.8,4491.7,6.29021123]
[1759972968115,0.002,4491.8,4491.7,8.9955108]
[1759972970465,0.002,4492.3,4492.2,2.22608076]
[1759972970661,0.002,4492.3,4492.2,7.07398841]
[1759972970890,0.002,4492.3,4492.2,7.51038841]
[1759972971096,0.002,4492.3,4492.2,8.31038841]
[1759972971820,0.002,4492.3,4492.2,5.60508884]
[1759972971982,0.002,4492.3,4492.2,3.02608076]
[1759972972297,0.002,4492.3,4490.6,0.001]
[1759972972298,2.78552539,4492.3,4490.6,0.001]
[1759972972497,0.6336,4492.0,4491.3,2.22649498]
[1759972972664,0.02782786,4491.9,4490.8,0.01334543]
[1759972972861,6.306,4491.8,4490.8,2.22676435]
[1759972973061,0.0278291,4491.7,4490.8,0.01334778]
[1759972974264,0.0278291,4491.7,4491.2,2.22655115]
[1759972974464,0.0278291,4491.7,4491.0,0.01334719]
[1759972974666,0.0278291,4491.7,4491.4,2.22646936]
[1759972974898,6.306,4491.8,4491.6,2.22633248]
[1759972975079,9.264,4492.1,4491.7,2.22628546]
[1759972975281,0.002,4492.3,4491.8,0.3252]
[1759972975478,4.156,4492.2,4491.8,0.3252]
[1759972975680,0.02782662,4492.1,4491.1,0.001]
[1759972975883,0.48822662,4492.1,4491.2,2.22657641]
[1759972976093,0.48822662,4492.1,4491.5,2.22637895]
[1759972976402,0.02782662,4492.1,4491.1,0.001]
[1759972976698,0.02782662,4492.1,4491.5,2.22638214]
[1759972976911,0.02782662,4492.1,4491.1,0.001]
[1759972977114,0.02782662,4492.1,4491.5,2.22638095]
[1759972977497,0.02782662,4492.1,4491.6,2.22636875]
[1759972978008,0.02782662,4492.1,4491.1,0.001]
[1759972978243,0.02782662,4492.1,4491.7,2.22632071]
[1759972978783,4.156,4492.2,4491.8,2.22623674]
[1759972979911,4.156,4492.2,4491.9,2.22621952]
[1759972980571,4.156,4492.2,4491.7,0.33853946]
[1759972980798,4.156,4492.2,4491.7,0.01333946]
[1759972980970,4.156,4492.2,4491.7,2.55151989]
[1759972981376,4.156,4492.2,4491.7,0.3252]
[1759972982012,0.02982539,4492.3,4491.7,0.1112]
[1759972982315,0.02982539,4492.3,4492.2,2.22608076]
[1759972982316,0.002,4492.3,4492.2,2.22608076]
[1759972982487,0.002,4492.3,4492.2,2.23941685]
[1759972982689,0.002,4492.3,4492.2,5.28461685]
[1759972982886,0.01,4492.9,4492.4,2.22598165]
[1759972983096,0.01,4492.9,4492.8,2.22578347]
[1759972983322,0.01,4492.9,4492.8,2.67095007]
[1759972983618,0.01,4492.9,4492.8,3.79415007]
[1759972984388,0.01,4492.9,4492.8,3.47095007]
[1759972984621,2.7864,4492.9,4492.8,0.8]
[1759972984832,2.7864,4492.9,4491.7,0.3232]
[1759972985132,0.66142229,4492.8,4491.8,2.22623303]
[1759972985427,0.66142229,4492.8,4492.3,2.22598419]
[1759972985630,1.12182229,4492.8,4491.5,0.0133368]
[1759972986519,2.22605946,4492.3,4491.4,2.22646227]
[1759972986815,6.795226,4492.2,4491.5,2.22638208]
[1759972987126,0.90212158,4492.1,4491.5,2.22642077]
[1759972987280,2.34382724,4492.0,4491.4,2.22646718]
[1759972987484,2.34382724,4492.0,4491.6,2.22633262]
[1759972988192,2.34382724,4492.0,4491.1,0.001]
[1759972988193,3.5383506,4491.9,4491.1,0.001]
[1759972988381,0.39648057,4491.8,4491.1,0.001]
[1759972988585,0.39648057,4491.8,4491.1,2.2275989]
[1759972990228,0.02782848,4491.8,4491.2,2.22653386]
[1759972990427,17.887,4491.7,4491.1,0.001]
[1759972990613,8.623,4491.6,4491.5,2.22637991]
[1759972991295,9.264,4492.0,4491.3,2.22650678]
[1759972991296,9.264,4492.0,4491.6,2.22636471]
[1759972991516,8.65082786,4491.9,4491.4,2.226428]
[1759972991739,8.623,4491.9,4491.2,2.22656283]
[1759972992054,0.02782848,4491.8,4491.3,2.22652545]
[1759972992333,0.02782848,4491.8,4491.2,2.22657295]
[1759972992334,0.1112,4491.6,4491.2,2.22657295]
[1759972993252,0.1112,4491.6,4491.3,2.22651514]
[1759972994010,0.1112,4491.6,4491.1,0.001]
[1759972994208,0.1112,4491.6,4491.5,2.22642769]
[1759972994410,0.1112,4491.6,4491.4,2.22647317]
[1759972994619,0.1112,4491.6,4491.5,2.22642769]
[1759972995105,0.1112,4491.6,4491.4,2.22646632]
[1759972995302,0.02782848,4491.8,4491.5,2.22642769]
[1759972996016,0.02782848,4491.8,4491.3,2.22652508]
[1759972996208,0.02782848,4491.8,4491.2,0.1112]
[1759972996209,2.22637742,4491.7,4491.2,0.1112]
[1759972996398,0.59942972,4491.6,4491.1,0.001]
[1759972996606,0.13902972,4491.6,4491.1,2.22762543]
[1759972996912,17.887,4491.5,4491.1,2.22762543]
[1759972997113,0.02783096,4491.4,4491.1,2.22762543]
[1759972997309,0.02783096,4491.4,4491.1,0.001]
[1759972997634,9.3762,4491.6,4491.3,2.22652612]
[1759972997844,4.882,4491.5,4491.1,0.001]
[1759972998045,2.5536,4492.4,4491.7,2.22630022]
[1759972998344,9.3762,4492.1,4491.7,2.22630022]
[1759972998512,9.3762,4492.1,4491.8,2.22626722]
[1759972998925,9.3762,4492.1,4491.7,2.22631475]
[1759972999123,9.3762,4492.1,4491.8,2.22627882]
[1759972999316,9.3762,4492.1,4491.3,0.1112]
[1759972999635,9.3762,4492.1,4491.7,2.22628673]
[1759972999834,9.3762,4492.1,4491.3,0.1112]
[1759973000039,9.3762,4492.1,4491.8,2.22623244]
[1759973000249,7.142,4492.8,4491.9,0.0133398]
[1759973000432,9.265,4492.5,4492.0,2.226131]
[1759973000777,0.02782477,4492.4,4492.0,2.226131]
[1759973000907,0.002,4492.8,4492.1,0.01333685]
[1759973001255,0.002,4492.8,4492.4,2.22594797]
[1759973001256,8.623,4492.7,4492.4,2.22594797]
[1759973001753,8.623,4492.7,4492.4,2.54914797]
[1759973001952,0.6,4492.5,4492.3,2.22602115]
[1759973002254,0.6,4492.5,4492.2,2.22605732]
[1759973002552,0.6,4492.5,4492.4,2.22598165]
[1759973005960,0.6,4492.5,4492.2,2.22603506]
[1759973006159,0.02782353,4492.6,4491.7,2.22632765]
[1759973006331,0.02782353,4492.6,4492.2,2.22607962]
[1759973006533,0.02782353,4492.6,4492.3,2.22601304]
[1759973007656,0.02782353,4492.6,4492.4,2.22597232]
[1759973008049,0.02782353,4492.6,4492.3,2.22602341]
[1759973008879,0.02782353,4492.6,4492.5,2.2259321]
[1759973009190,0.002,4492.8,4491.9,0.01333415]
[1759973009461,0.002,4492.8,4492.7,2.22583301]
[1759973009661,6.308,4492.8,4492.7,2.22583301]
[1759973009867,6.308,4492.8,4492.7,2.54903301]
[1759973012968,6.308,4492.8,4492.7,2.22583301]
[1759973017790,6.308,4492.8,4492.7,2.54903301]
[1759973018387,6.308,4492.8,4492.7,2.22583301]
[1759973019361,0.002,4492.8,4492.7,2.22583301]
[1759973019566,4.68,4492.8,4492.7,2.22583301]
[1759973019773,4.68,4492.8,4492.6,0.1112]
[1759973019976,4.68,4492.8,4491.1,2.22760898]
[1759973019977,2.22595925,4492.5,4491.1,2.22760898]
[1759973020294,6.33282477,4492.4,4491.1,0.3242]
[1759973020483,6.7648,4492.4,4491.1,1.1242]
[1759973020793,6.7648,4492.4,4491.6,2.22637228]
[1759973020794,0.4598,4492.3,4491.6,2.22637228]
[1759973020982,0.4598,4492.3,4491.5,2.2274198]
[1759973020983,0.027826,4492.2,4491.5,2.2274198]
[1759973021164,6.305,4492.1,4491.5,2.2274198]
[1759973021365,6.7648,4492.1,4491.5,2.2274198]
[1759973022596,6.7648,4492.1,4491.5,0.001]
[1759973023472,6.7648,4492.1,4491.5,2.2274156]
[1759973024015,9.62453031,4492.1,4491.5,0.001]
[1759973025279,11.54453031,4492.1,4491.5,0.001]
[1759973025492,12.01353031,4492.1,4491.5,0.001]
[1759973029780,5.70853031,4492.1,4491.5,0.001]
[1759973029982,22.03313031,4492.1,4491.5,0.001]
[1759973030404,23.13653031,4492.1,4491.5,0.001]
[1759973038200,20.9104,4492.1,4491.5,0.001]
[1759973038699,23.13653031,4492.1,4491.5,0.001]
[1759973039995,4.77973031,4492.1,4491.5,0.001]
[1759973040195,23.09433031,4492.1,4491.5,0.001]
[1759973041599,5.20733031,4492.1,4491.5,0.001]
[1759973041897,23.09433031,4492.1,4491.5,0.001]
[1759973044660,30.23433031,4492.1,4491.5,0.001]
[1759973045874,30.32350465,4492.1,4491.5,0.001]
[1759973048026,31.59376102,4492.1,4491.5,0.001]
[1759973048403,31.00205424,4492.1,4491.5,0.001]
[1759973049221,31.59332914,4492.1,4491.5,0.001]
[1759973049525,31.00205424,4492.1,4491.5,0.001]
[1759973052259,31.59330404,4492.1,4491.5,0.001]
[1759973053768,31.00205424,4492.1,4491.5,0.001]
[1759973053962,4.77997812,4491.6,4491.5,0.001]
[1759973054143,22.07855064,4491.6,4491.5,0.001]
[1759973054340,22.50615064,4491.6,4491.5,0.001]
[1759973054758,22.59533989,4491.6,4491.5,0.001]
[1759973054944,23.09533989,4491.6,4491.5,0.001]
[1759973061546,2.86017641,4491.2,4491.1,0.001]
[1759973061750,16.81038031,4491.2,4491.1,0.001]
[1759973061967,16.78254811,4491.2,4491.1,0.001]
[1759973062172,17.21014811,4491.2,4491.1,0.001]
[1759973062466,24.43933915,4491.2,4491.1,0.001]
[1759973066659,24.43933915,4491.2,4490.3,0.001]
[1759973066660,8.15779602,4490.7,4490.3,0.001]
[1759973066852,21.60579602,4490.7,4490.3,0.001]
[1759973067040,22.04709602,4490.7,4490.3,0.001]
[1759973067240,22.136299,4490.7,4490.3,0.001]
[1759973068763,22.60929456,4490.7,4490.3,0.001]
[1759973068940,22.136299,4490.7,4490.3,0.001]
[1759973069763,16.30159457,4490.7,4490.3,0.001]
[1759973069964,43.46459457,4490.7,4490.3,0.001]
[1759973070870,12.92422287,4490.7,4490.3,0.001]
[1759973071062,42.991299,4490.7,4490.3,0.001]
[1759973071467,43.4647058,4490.7,4490.3,0.001]
[1759973075971,16.3017058,4490.7,4490.3,0.001]
[1759973076185,43.4677058,4490.7,4490.3,0.001]
[1759973076482,0.29501773,4490.7,4490.3,0.001]
[1759973076668,8.83181475,4490.7,4490.4,2.22696689]
[1759973076873,8.626,4490.7,4490.4,2.22696689]
[1759973077169,0.4413,4491.5,4490.3,0.001]
[1759973077170,2.66741045,4492.2,4491.1,2.22661025]
[1759973077370,0.1112,4491.4,4491.1,2.44927127]
[1759973077676,8.626,4491.3,4491.1,0.22266102]
[1759973077875,8.626,4491.3,4490.8,2.22676828]
[1759973078092,8.626,4491.3,4490.6,0.1122]
[1759973078378,8.626,4491.3,4491.0,2.2266711]
[1759973078578,8.626,4491.3,4490.8,2.22673213]
[1759973078762,8.626,4491.3,4490.6,2.33907355]
[1759973078763,8.626,4491.3,4490.9,2.22671579]
[1759973078969,8.626,4491.3,4490.9,2.63942593]
[1759973079985,8.626,4491.3,4490.9,2.96262593]
[1759973080185,8.626,4491.3,4490.9,2.63942593]
[1759973081157,8.626,4491.3,4490.9,2.96262593]
[1759973081482,8.626,4491.3,4490.9,2.63942593]
[1759973081883,8.626,4491.3,4490.9,0.41271014]
[1759973082084,8.626,4491.3,4490.8,2.22676742]
[1759973082584,8.626,4491.3,4490.9,2.22669843]
[1759973082786,8.626,4491.3,4490.6,0.1122]
[1759973082958,8.626,4491.3,4490.8,2.22676253]
[1759973083777,8.624,4491.2,4490.9,2.22672388]
[1759973083961,8.624,4491.2,4491.0,0.3232]
[1759973085075,8.624,4491.2,4490.9,2.6832944]
[1759973085076,8.624,4491.2,4490.9,0.45657878]
[1759973086789,8.624,4491.2,4490.9,2.68329214]
[1759973088679,8.624,4491.2,4490.9,3.00649214]
[1759973089709,8.624,4491.2,4490.9,2.68329214]
[1759973089902,8.624,4491.2,4491.0,2.54986499]
[1759973090209,8.624,4491.2,4490.9,2.68329922]
[1759973091085,0.1112,4491.4,4491.0,0.49101213]
[1759973091289,2.317,4491.4,4491.2,2.22657641]
[1759973091490,2.317,4491.4,4491.3,0.4344]
[1759973091805,8.623,4491.4,4491.3,2.66092684]
[1759973092180,0.002,4491.6,4491.5,2.22642769]
[1759973092381,6.308,4491.6,4491.5,2.95250027]
[1759973092684,6.308,4491.6,4491.5,3.38690027]
[1759973093111,0.002,4491.6,4491.5,3.26235551]
[1759973093317,0.002,4491.6,4491.5,3.38690027]
[1759973093511,0.063,4491.6,4491.5,3.37355551]
[1759973093809,0.063,4491.6,4491.5,3.38690027]
[1759973095621,0.002,4491.6,4491.5,3.38690027]
[1759973095801,5.745,4491.6,4491.5,3.38690027]
[1759973095978,5.745,4491.6,4491.5,3.37355551]
[1759973096379,5.745,4491.6,4491.5,4.17355551]
[1759973096612,6.308,4491.6,4491.5,4.17355551]
[1759973101413,0.002,4491.6,4491.5,4.17355551]
[1759973103083,0.002,4491.6,4491.5,3.85035551]
[1759973103307,0.002,4491.6,4491.5,4.17355551]
[1759973103806,0.002,4491.6,4491.5,4.18690027]
[1759973104612,0.002,4491.6,4491.5,4.17355551]
[1759973105398,0.002,4491.6,4491.5,4.18690027]
[1759973106211,0.002,4491.6,4491.5,4.17355551]
[1759973111727,0.002,4491.6,4491.5,6.88098524]
[1759973113810,0.002,4491.6,4491.5,1.62392782]
[1759973114112,0.002,4491.6,4491.5,2.66082769]
[1759973117143,0.002,4491.6,4491.5,2.54962769]
[1759973117502,0.002,4491.6,4491.5,2.56297245]
[1759973117902,0.002,4491.6,4491.5,2.54962769]
[1759973118935,0.002,4491.6,4491.5,3.34962769]
[1759973120238,0.002,4491.6,4491.5,4.19133075]
[1759973120809,0.002,4491.6,4491.5,4.17798599]
[1759973125164,0.002,4491.6,4491.5,4.19133075]
[1759973125740,0.002,4491.6,4491.5,8.81876048]
[1759973126056,0.00040627,4491.6,4491.5,8.80541572]
[1759973126364,0.002,4492.5,4492.4,2.22598165]
[1759973126566,0.002,4492.5,4492.4,5.39194812]
[1759973126765,0.002,4492.5,4492.4,7.62181451]
[1759973127066,0.002,4492.5,4492.4,8.53301451]
[1759973128071,0.002,4492.5,4492.4,14.83601451]
[1759973130577,0.002,4492.5,4492.4,5.50238478]
[1759973130877,0.002,4492.5,4492.4,3.46038165]
[1759973131371,0.002,4492.5,4492.4,3.91163593]
[1759973131531,0.002,4492.5,4492.4,3.11163593]
[1759973131740,0.002,4492.5,4492.4,5.81906566]
[1759973132871,0.002,4492.5,4492.4,3.11163593]
[1759973143960,0.6336,4491.9,4490.6,0.001]
[1759973144166,2.22661472,4491.2,4490.6,0.001]
[1759973144362,4.26705881,4491.1,4490.6,0.001]
[1759973144569,6.58822599,4491.1,4490.6,0.001]
[1759973144882,2.22672515,4490.9,4490.6,0.001]
[1759973145082,8.67273722,4490.9,4490.6,0.001]
[1759973145272,9.07390316,4490.9,4490.6,0.001]
[1759973145873,9.16309202,4490.9,4490.6,0.001]
[1759973148287,4.14066229,4490.9,4490.6,0.001]
[1759973148500,6.87592608,4490.9,4490.6,0.001]
[1759973148783,24.73009202,4490.9,4490.6,0.001]
[1759973148964,6.84809202,4490.9,4490.6,0.001]
[1759973149152,24.73109202,4490.9,4490.6,0.001]
[1759973151987,25.4005182,4490.9,4490.6,0.001]
[1759973152473,7.5175182,4490.9,4490.6,0.001]
[1759973152680,25.4025182,4490.9,4490.6,0.001]
[1759973153886,7.5175182,4490.9,4490.6,0.001]
[1759973154087,17.64366229,4490.9,4490.6,0.001]
[1759973154390,23.94766229,4490.9,4490.6,0.001]
[1759973155291,23.85847343,4490.9,4490.6,0.001]
[1759973156460,5.97147343,4490.9,4490.6,0.001]
[1759973156694,23.85847343,4490.9,4490.6,0.001]
[1759973156883,27.23532934,4490.9,4490.6,0.001]
[1759973157683,23.42947343,4490.9,4490.6,0.001]
[1759973157892,72.66732515,4490.9,4490.6,0.001]
[1759973158084,70.74732515,4490.9,4490.6,0.001]
[1759973158620,67.887,4490.9,4490.6,0.001]
[1759973158977,50.0,4490.9,4490.6,0.001]
[1759973159176,67.887,4490.9,4490.6,0.001]
[1759973160424,76.47228106,4490.9,4490.6,0.001]
[1759973161818,73.09542515,4490.9,4490.6,0.001]
[1759973163817,73.09742515,4490.9,4490.6,0.001]
[1759973164017,55.20842515,4490.9,4490.6,0.001]
[1759973164179,73.09742515,4490.9,4490.6,0.001]
[1759973168423,52.9817,4490.9,4490.6,0.001]
[1759973168715,68.0002,4490.9,4490.6,0.001]
[1759973169732,70.65502515,4490.9,4490.6,0.001]
[1759973170024,68.0002,4490.9,4490.6,0.001]
[1759973171691,50.1112,4490.9,4490.8,0.3252]
[1759973171894,50.0,4490.9,4490.8,2.55197473]
[1759973172204,58.621,4490.9,4490.8,3.14125959]
[1759973172404,50.0,4490.9,4490.8,3.14125959]
[1759973172595,56.304,4490.9,4490.8,3.14125959]
[1759973176210,56.304,4490.9,4490.8,0.001]
[1759973178126,56.7321,4490.9,4490.8,0.001]
[1759973178496,58.95882515,4490.9,4490.8,0.001]
[1759973184146,56.304,4490.9,4490.8,0.001]
[1759973184857,67.888,4490.9,4490.8,0.001]
[1759973185165,50.0,4490.9,4490.8,2.55197473]
[1759973185461,56.303,4490.9,4490.8,3.04474652]
[1759973186149,56.303,4490.9,4490.8,4.96474652]
[1759973186345,56.303,4490.9,4490.8,5.06259308]
[1759973188330,50.0,4490.9,4490.8,5.06259308]
[1759973188558,56.303,4490.9,4490.8,5.06259308]
[1759973189152,56.303,4490.9,4490.8,5.86259308]
[1759973189747,50.0,4490.9,4490.8,5.86259308]
[1759973190332,4.74605346,4490.9,4490.8,5.86259308]
[1759973190531,4.4083403,4490.9,4490.8,5.86259308]
[1759973191060,1e-08,4490.9,4490.8,5.86259308]
[1759973191765,1e-08,4490.9,4490.8,6.94778624]
[1759973195075,0.002,4491.5,4490.8,6.94778624]
[1759973195076,1e-08,4491.5,4491.4,2.22647726]
[1759973195246,1e-08,4491.5,4491.4,14.28398155]
[1759973195449,1e-08,4491.5,4491.4,14.59483555]
[1759973195645,1e-08,4491.5,4491.4,16.02843555]
[1759973198766,1e-08,4491.5,4491.4,12.65157964]
[1759973198971,1e-08,4491.5,4491.4,16.02843555]
[1759973201873,1e-08,4491.5,4491.4,9.72643555]